bitfinex/quotes_ETHUSD_20210401
["timestamp","ask_amount","ask_price","bid_price","bid_amount"]
[1617311649994,0.13,1972.7,1972.5,0.4]
[1617311650593,0.13,1972.7,1972.5,0.406]
[1617311651018,0.13,1972.7,1972.5,7.6104]
[1617311651419,0.13,1972.7,1972.4,0.01790857]
[1617311651619,5.14,1972.7,1972.4,0.006]
[1617311652020,0.13,1972.7,1972.4,0.006]
[1617311653219,0.13,1972.7,1972.4,7.6108]
[1617311654839,5.14,1972.7,1972.4,7.6108]
[1617311655038,0.13,1972.7,1972.4,7.6108]
[1617311657478,0.13,1972.7,1972.5,0.006]
[1617311657878,0.13,1972.7,1972.4,7.6108]
[1617311659595,0.39,1972.5,1972.4,7.6108]
[1617311659800,0.39,1972.5,1972.4,0.006]
[1617311660995,4.11379176,1972.5,1972.4,0.006]
[1617311661217,11.71979176,1972.5,1972.4,0.006]
[1617311661419,7.606,1972.5,1972.4,0.006]
[1617311662618,8.006,1972.5,1972.4,0.006]
[1617311663447,13.016,1972.5,1972.4,0.006]
[1617311672622,12.616,1972.5,1972.4,0.006]
[1617311673421,5.01,1972.5,1972.4,0.006]
[1617311673821,0.4,1972.5,1972.4,0.006]
[1617311674022,5.41,1972.5,1972.4,0.006]
[1617311674639,5.01,1972.5,1972.4,0.006]
[1617311675844,8.73379176,1972.5,1972.4,0.006]
[1617311676242,5.01,1972.5,1972.4,0.006]
[1617311678073,5.4,1972.5,1972.4,0.006]
[1617311678668,5.01,1972.5,1972.4,0.006]
[1617311680895,12.6162,1972.5,1972.4,0.006]
[1617311681495,12.6162,1972.5,1972.3,0.41790662]
[1617311681695,5.01,1972.5,1972.3,0.406]
[1617311682348,5.01,1972.4,1972.3,0.406]
[1617311682549,5.01,1972.4,1972.3,0.006]
[1617311686155,5.01,1972.4,1972.3,0.01191352]
[1617311687356,5.01,1972.6,1972.3,0.01191352]
[1617311687570,5.01,1972.6,1972.4,0.006]
[1617311688367,5.01,1972.5,1972.4,0.006]
[1617311688769,5.01,1972.6,1972.4,0.006]
[1617311692399,5.01,1972.6,1972.5,0.006]
[1617311701301,5.4,1972.6,1972.5,0.006]
[1617311701702,5.01,1972.6,1972.5,0.006]
[1617311702100,12.61593,1972.6,1972.5,0.006]
[1617311704523,12.99593,1972.6,1972.5,0.006]
[1617311705944,12.61593,1972.6,1972.5,0.006]
[1617311706146,21.58463,1972.6,1972.5,0.006]
[1617311711317,21.58463,1972.6,1972.4,0.006]
[1617311711517,5.01,1972.5,1972.4,0.006]
[1617311712919,5.01,1972.5,1972.4,0.01192965]
[1617311715522,12.6163,1972.5,1972.4,0.01192965]
[1617311715723,16.34009176,1972.5,1972.4,0.01192965]
[1617311717148,16.34009176,1972.5,1972.4,0.006]
[1617311717546,12.6163,1972.5,1972.4,0.006]
[1617311718548,12.6163,1972.5,1972.4,0.011926]
[1617311718748,16.34009176,1972.5,1972.4,0.011926]
[1617311719173,16.34009176,1972.5,1972.4,0.017926]
[1617311719371,16.34009176,1972.5,1972.4,0.006]
[1617311720371,16.75009176,1972.5,1972.4,0.006]
[1617311721175,24.75009176,1972.5,1972.4,0.006]
[1617311721376,26.24409176,1972.5,1972.2,0.006]
[1617311721604,26.24409176,1972.5,1972.1,0.006]
[1617311721605,0.39,1972.2,1972.1,0.006]
[1617311721804,10.18999176,1972.2,1972.1,0.006]
[1617311722001,10.18999176,1972.2,1972.0,0.01192738]
[1617311722002,10.18999176,1972.2,1972.0,0.006]
[1617311722202,5.01,1972.1,1972.0,0.006]
[1617311722402,5.29,1972.1,1972.0,0.006]
[1617311724218,12.89817,1972.1,1972.0,0.006]
[1617311726422,13.28817,1972.1,1972.0,0.006]
[1617311726623,21.58917,1972.1,1971.5,0.0894598]
[1617311726878,0.39,1971.6,1971.5,0.0894598]
[1617311727073,12.4127,1971.6,1971.4,0.08946176]
[1617311727272,5.01,1971.5,1971.4,0.73989389]
[1617311727676,5.01,1971.5,1971.3,0.0894665]
[1617311727677,12.62023,1971.5,1971.3,0.0894665]
[1617311727877,5.01,1971.4,1971.2,0.08947099]
[1617311728074,5.332,1971.4,1971.2,0.73995461]
[1617311728275,5.332,1971.4,1971.1,0.14]
[1617311728276,5.722,1971.4,1971.1,0.14]
[1617311729274,3.72379176,1971.3,1971.1,0.14]
[1617311729475,3.72379176,1971.2,1971.1,0.14]
[1617311729676,10.99569176,1971.2,1970.9,0.39]
[1617311729875,10.99569176,1971.2,1970.9,0.53]
[1617311729876,7.2719,1971.2,1970.9,0.53]
[1617311730878,7.2719,1971.2,1970.9,0.14]
[1617311731278,14.88346,1971.2,1970.9,0.14]
[1617311731477,4.16,1971.1,1970.9,0.14]
[1617311731876,4.85,1971.1,1970.6,4.96794003]
[1617311732105,0.308,1971.0,1970.7,0.14]
[1617311732306,4.03179176,1971.0,1970.7,0.14]
[1617311732505,0.308,1971.0,1970.7,0.14]
[1617311732904,0.4,1970.8,1970.7,0.0001]
[1617311733112,11.46389176,1970.8,1970.6,1.0]
[1617311733307,0.711,1970.7,1970.6,1.0]
[1617311733506,5.721,1970.7,1970.6,1.0]
[1617311733705,5.721,1970.7,1970.6,2.02039469]
[1617311734307,5.721,1970.7,1970.4,0.7]
[1617311734511,0.41,1970.5,1970.4,0.7]
[1617311734735,5.7,1970.5,1970.4,0.7]
[1617311734933,0.69,1970.5,1970.4,0.0001]
[1617311735332,5.7,1970.5,1970.4,0.0001]
[1617311735533,0.69,1970.5,1970.4,1.02800788]
[1617311735736,5.7,1970.5,1970.4,0.0001]
[1617311736932,5.7,1970.5,1970.1,0.0001]
[1617311737134,16.91330422,1970.4,1970.1,0.0001]
[1617311737354,0.4,1970.2,1970.1,0.0001]
[1617311737752,5.41,1970.2,1970.1,0.0001]
[1617311737951,5.41,1970.2,1970.1,1.02664166]
[1617311738152,5.01,1970.2,1970.1,1.02664166]
[1617311738552,12.01,1970.2,1970.1,0.0001]
[1617311738755,12.4,1970.2,1970.1,0.0001]
[1617311739152,16.08687928,1970.2,1970.1,0.0001]
[1617311739999,12.4,1970.2,1970.1,0.0001]
[1617311740400,5.4,1970.2,1970.1,0.0001]
[1617311740602,5.42,1970.2,1970.1,0.0001]
[1617311742400,9.10687928,1970.2,1970.1,0.0001]
[1617311745428,5.42,1970.2,1970.1,0.0001]
[1617311745629,5.01,1970.2,1970.1,0.0001]
[1617311748474,8.69687928,1970.2,1970.1,0.0001]
[1617311748673,8.74287928,1970.2,1970.1,0.0001]
[1617311748880,16.14287928,1970.2,1970.1,0.0001]
[1617311756536,15.74287928,1970.2,1970.1,0.0001]
[1617311762377,23.35957928,1970.2,1970.1,0.0001]
[1617311763807,31.74957928,1970.2,1970.1,0.0001]
[1617311764405,61.74957928,1970.2,1970.1,0.0001]
[1617311766629,125.66734623,1970.2,1970.1,0.0001]
[1617311767629,126.86734623,1970.2,1970.1,0.0001]
[1617311767839,126.86734623,1970.2,1969.6,0.0001]
[1617311768033,0.42,1970.0,1969.6,0.1401]
[1617311768230,0.50132494,1969.9,1969.6,0.1401]
[1617311768429,7.6175,1969.8,1969.6,0.1401]
[1617311768630,2.86,1969.7,1969.6,0.1401]
[1617311768853,7.87,1969.7,1969.1,1.0]
[1617311769054,14.2732,1969.6,1969.1,1.0]
[1617311769255,0.09132494,1969.5,1969.4,0.4]
[1617311769459,0.09132494,1969.5,1969.1,1.0]
[1617311769460,7.61789,1969.5,1969.2,0.4]
[1617311769654,7.61789,1969.5,1969.2,0.54]
[1617311771695,7.61789,1969.5,1969.3,0.38]
[1617311772100,15.16718,1969.7,1969.3,0.38]
[1617311772101,15.45418,1969.7,1969.3,0.38]
[1617311772298,12.62735,1969.6,1969.4,0.38]
[1617311772699,5.01,1969.6,1969.4,0.38]
[1617311772897,5.01,1969.6,1969.3,0.14]
[1617311773098,5.01,1969.6,1969.3,0.54]
[1617311773297,5.01,1969.6,1969.3,0.49]
[1617311773898,5.29,1969.6,1969.3,7.70631]
[1617311774104,5.29,1969.6,1969.1,1.0]
[1617311774502,5.29,1969.6,1969.2,0.39]
[1617311775303,5.29,1969.6,1969.2,0.516]
[1617311775704,5.29,1969.6,1969.2,0.126]
[1617311776928,12.90753,1969.6,1969.2,0.126]
[1617311779131,12.90753,1969.6,1969.3,0.39]
[1617311779357,0.4,1969.4,1969.0,7.61742]
[1617311779557,0.287,1969.3,1969.0,7.61742]
[1617311779957,0.287,1969.3,1968.6,1.50200998]
[1617311780158,0.287,1969.3,1968.9,0.091]
[1617311780562,0.803,1969.2,1968.6,11.1574]
[1617311780759,0.462,1969.0,1968.6,11.6974]
[1617311781158,5.472,1969.0,1968.6,11.6974]
[1617311781757,13.8099,1969.2,1968.7,0.4]
[1617311781981,14.1109,1969.2,1968.7,0.4]
[1617311782184,0.41,1969.1,1968.7,0.4]
[1617311782384,5.01,1969.0,1968.6,11.2974]
[1617311785829,5.42,1969.0,1968.6,11.2974]
[1617311786033,5.742,1969.0,1968.6,1.14]
[1617311786231,5.01,1968.9,1968.6,1.14]
[1617311786830,5.742,1969.0,1968.6,1.14]
[1617311787031,5.42,1969.0,1968.6,1.14]
[1617311787232,13.31981,1969.0,1968.6,1.14]
[1617311788636,0.39,1968.7,1968.6,1.0]
[1617311788838,12.3284364,1968.7,1968.6,1.0]
[1617311789035,24.8757364,1968.7,1968.6,1.0]
[1617311790255,32.4974864,1968.7,1968.6,1.0]
[1617311790452,28.85605,1968.7,1968.6,1.0]
[1617311792686,28.85605,1968.7,1968.6,0.94133985]
[1617311793087,28.85605,1968.7,1968.1,0.89]
[1617311793290,0.38,1968.2,1968.1,0.89]
[1617311793688,5.39,1968.2,1968.1,0.89]
[1617311794088,5.39,1968.2,1968.1,0.74]
[1617311794894,5.01,1968.2,1968.1,0.74]
[1617311795106,10.9555,1968.2,1968.1,0.74]
[1617311797108,11.3455,1968.2,1968.1,0.69]
[1617311797832,6.3355,1968.2,1968.1,0.69]
[1617311798032,5.9455,1968.2,1968.1,0.69]
[1617311798235,5.9455,1968.2,1968.1,0.54]
[1617311798435,0.6888,1968.4,1968.1,0.54]
[1617311798644,0.28,1968.4,1968.1,0.54]
[1617311799041,7.5,1968.5,1968.1,0.54]
[1617311799237,20.21122494,1968.6,1968.1,0.54]
[1617311799436,20.21122494,1968.6,1968.2,0.41]
[1617311799637,20.1199,1968.6,1968.2,0.55]
[1617311800239,25.1299,1968.6,1968.2,0.55]
[1617311800483,25.1299,1968.6,1968.2,0.14]
[1617311801985,0.4,1968.5,1968.2,0.14]
[1617311802185,25.8319,1968.6,1968.2,0.14]
[1617311802584,25.8319,1968.6,1968.1,0.68]
[1617311802785,33.4533,1968.6,1968.1,0.68]
[1617311803088,5.02,1968.5,1968.1,0.68]
[1617311803286,33.4533,1968.6,1968.1,0.68]
[1617311803890,32.7513,1968.6,1968.2,0.41]
[1617311804087,23.9304,1968.6,1968.2,0.41]
[1617311808727,18.9204,1968.6,1968.2,0.41]
[1617311808928,11.709,1968.6,1968.1,0.68]
[1617311809131,11.709,1968.6,1968.1,1.09]
[1617311809728,11.299,1968.6,1968.1,1.09]
[1617311809927,16.309,1968.6,1968.1,1.09]
[1617311810729,16.719,1968.6,1968.1,0.68]
[1617311810956,0.38,1968.4,1968.1,0.68]
[1617311811155,5.761,1968.4,1968.1,0.54]
[1617311811357,5.01,1968.3,1968.1,0.54]
[1617311811759,5.761,1968.4,1968.1,0.54]
[1617311811956,5.381,1968.4,1968.1,0.54]
[1617311812557,5.01,1968.3,1968.1,0.54]
[1617311813358,5.4,1968.3,1968.1,0.54]
[1617311813879,5.01,1968.3,1968.1,0.54]
[1617311815282,5.01,1968.2,1968.1,0.54]
[1617311817338,0.4,1968.3,1968.1,0.54]
[1617311817537,3.9984384,1968.2,1967.6,1.20310047]
[1617311817738,0.39,1967.8,1967.6,1.0]
[1617311818336,0.28,1967.9,1967.6,1.0]
[1617311818733,5.01,1967.8,1967.6,1.0]
[1617311820236,5.4,1967.8,1967.6,0.9]
[1617311820836,5.01,1967.8,1967.6,0.9]
[1617311821037,12.63326,1968.0,1967.6,0.9]
[1617311821466,0.39,1967.8,1967.6,0.9]
[1617311821665,0.357,1967.9,1967.6,0.9]
[1617311823269,0.757,1967.9,1967.6,0.9]
[1617311823470,5.01,1967.8,1967.6,0.9]
[1617311823872,0.4,1967.9,1967.6,0.9]
[1617311825284,8.02374,1967.9,1967.6,0.9]
[1617311825484,8.02374,1967.9,1967.6,0.746695]
[1617311825685,5.41,1967.7,1967.6,0.746695]
[1617311826285,0.4,1967.7,1967.6,0.746695]
[1617311826718,5.74,1967.9,1967.6,0.746695]
[1617311827117,7.6241,1967.8,1967.6,0.746695]
[1617311827321,5.01,1967.7,1967.6,0.746695]
[1617311827518,7.6241,1967.8,1967.6,0.746695]
[1617311828119,7.6241,1967.8,1967.6,0.67554794]
[1617311828358,8.0341,1967.8,1967.6,0.67554794]
[1617311828756,0.4,1967.7,1967.6,0.67554794]
[1617311828958,9.0284384,1967.7,1967.1,8.27650106]
[1617311829163,9.0284384,1967.7,1967.1,8.41650106]
[1617311829164,0.4,1967.4,1967.1,8.41650106]
[1617311830168,7.93251,1967.7,1967.1,8.41650106]
[1617311830365,0.39,1967.6,1967.1,8.41650106]
[1617311830764,0.392,1967.5,1967.1,8.81650106]
[1617311830964,5.01,1967.5,1967.1,8.81650106]
[1617311831165,8.30451,1967.7,1967.1,8.81650106]
[1617311832011,0.39,1967.5,1967.1,8.41650106]
[1617311832407,5.29,1967.7,1967.1,8.41650106]
[1617311832612,5.01,1967.6,1967.1,8.41650106]
[1617311835018,5.01,1967.6,1967.2,0.39]
[1617311835417,5.01,1967.6,1967.1,8.41650106]
[1617311835618,0.406,1967.5,1967.1,8.79650106]
[1617311835818,5.01,1967.6,1967.1,8.79650106]
[1617311836220,0.413,1967.5,1967.1,6.93135406]
[1617311836421,0.39,1967.3,1967.0,0.14]
[1617311837440,0.413,1967.5,1967.0,0.14]
[1617311837641,8.02506,1967.5,1967.0,0.14]
[1617311837846,7.71638494,1967.5,1967.1,0.38]
[1617311838042,1.0219846,1967.7,1967.2,0.4]
[1617311838043,1.11330954,1967.7,1967.2,0.4]
[1617311838444,1.11330954,1967.7,1967.2,0.14]
[1617311839044,1.11330954,1967.7,1967.2,0.54]
[1617311839247,0.09132494,1967.7,1967.3,0.4]
[1617311839448,0.09132494,1967.8,1967.4,0.4]
[1617311839645,0.09132494,1967.8,1967.4,0.54]
[1617311839864,8.60352494,1967.9,1967.4,0.54]
[1617311840063,0.38,1967.8,1967.4,0.14]
[1617311840270,0.39,1967.7,1967.4,0.14]
[1617311840866,1.40986054,1967.7,1967.4,0.14]
[1617311841267,0.41,1967.5,1966.9,0.92259013]
[1617311841468,0.41,1967.5,1966.9,1.44259013]
[1617311841469,0.301,1967.4,1966.9,1.44259013]
[1617311842696,0.41,1967.3,1966.9,8.68744013]
[1617311842895,0.301,1967.4,1966.9,12.05744013]
[1617311843296,0.301,1967.4,1966.9,9.07744013]
[1617311843501,0.69,1967.5,1966.9,9.07744013]
[1617311844497,5.7,1967.5,1966.9,9.07744013]
[1617311844698,8.31478,1967.5,1966.9,9.07744013]
[1617311845131,7.62478,1967.5,1967.1,0.39]
[1617311845532,5.01,1967.6,1967.2,0.39]
[1617311845736,12.63403,1967.7,1967.3,0.39]
[1617311845933,5.01,1967.7,1967.3,0.39]
[1617311846136,0.09132494,1967.8,1967.4,0.39]
[1617311846734,0.49132494,1967.8,1967.3,0.14]
[1617311846935,0.4,1967.8,1967.3,7.76354]
[1617311847133,0.392,1967.7,1967.3,7.76354]
[1617311847334,5.402,1967.7,1967.3,7.76354]
[1617311847741,0.392,1967.7,1967.3,7.76354]
[1617311848142,0.4,1967.8,1967.3,7.76354]
[1617311848345,5.29,1967.7,1967.3,7.76354]
[1617311848545,5.29,1967.7,1967.3,8.17354]
[1617311849543,0.28,1967.7,1967.3,8.17354]
[1617311850143,0.28,1967.7,1967.5,0.39]
[1617311850367,77.43996695,1967.9,1967.5,0.39]
[1617311850569,7.5,1967.8,1967.4,7.62307]
[1617311850766,7.5,1967.8,1967.4,8.02307]
[1617311851164,69.20776695,1967.9,1967.4,8.02307]
[1617311851764,63.91776695,1967.9,1967.4,8.14111515]
[1617311851965,34.02017,1968.0,1967.5,0.4]
[1617311852167,0.09132494,1967.9,1967.4,0.11804515]
[1617311852367,6.71132494,1967.9,1967.4,0.49804515]
[1617311852992,6.16,1967.8,1967.4,0.11804515]
[1617311853200,13.78357,1967.8,1967.4,0.11804515]
[1617311853392,2.88,1967.7,1967.4,0.11804515]
[1617311853600,3.89956598,1967.7,1967.4,0.11804515]
[1617311854194,8.90956598,1967.7,1967.4,0.11804515]
[1617311855400,3.89956598,1967.7,1967.5,0.4]
[1617311855626,1.01956598,1967.7,1967.4,0.11804515]
[1617311855826,1.01956598,1967.7,1967.4,0.50804515]
[1617311856626,1.01956598,1967.7,1967.6,0.4]
[1617311857028,3.81167,1967.9,1967.6,0.4]
[1617311857627,6.36,1967.8,1967.4,8.12102515]
[1617311858027,3.81167,1967.9,1967.4,8.12102515]
[1617311859047,3.81167,1967.9,1967.6,0.38]
[1617311859255,0.41,1967.9,1967.4,0.11804515]
[1617311860048,11.3579,1968.0,1967.5,0.39]
[1617311860248,11.3579,1968.0,1967.5,8.01249]
[1617311860249,11.3079,1968.0,1967.5,8.01249]
[1617311860450,11.3079,1968.0,1967.6,0.4]
[1617311860650,11.0279,1968.0,1967.7,0.38]
[1617311861086,11.3079,1968.0,1967.7,0.38]
[1617311861892,11.0279,1968.0,1967.7,0.38]
[1617311862087,11.0279,1968.0,1967.6,0.39]
[1617311863089,7.62262,1968.1,1967.6,0.39]
[1617311866019,7.62262,1968.1,1967.6,8.0122]
[1617311867519,0.41,1968.0,1967.6,7.6222]
[1617311868739,7.62262,1968.1,1967.6,8.0222]
[1617311869540,7.62262,1968.1,1967.6,0.4]
[1617311869739,0.41,1968.0,1967.5,0.14]
[1617311870738,7.62262,1968.1,1967.5,0.54]
[1617311870939,3.47323609,1968.0,1967.5,0.54]
[1617311871365,8.0128,1968.0,1967.5,0.54]
[1617311871966,4.09162,1967.9,1967.5,0.14]
[1617311872165,10.59162,1967.9,1967.5,0.14]
[1617311872765,10.97162,1967.9,1967.5,0.14]
[1617311873165,12.09486,1967.9,1967.5,0.14]
[1617311874998,11.81486,1967.9,1967.5,0.14]
[1617311876843,11.43486,1967.9,1967.5,0.14]
[1617311877048,11.84486,1967.9,1967.5,0.14]
[1617311877445,11.43486,1967.9,1967.5,0.14]
[1617311877650,11.43486,1967.9,1967.5,0.52]
[1617311878046,11.43486,1967.9,1967.5,0.14]
[1617311879445,0.39,1967.8,1967.4,13.88074515]
[1617311879651,0.67,1967.8,1967.4,13.88074515]
[1617311879846,0.67,1967.8,1967.4,7.74074515]
[1617311879847,0.39,1967.8,1967.4,7.74074515]
[1617311880446,11.43486,1967.9,1967.5,0.4]
[1617311880647,3.81162,1967.9,1967.4,7.74074515]
[1617311881246,3.81162,1967.9,1967.4,15.74074515]
[1617311881446,3.81162,1967.9,1967.4,13.51804515]
[1617311881648,3.81162,1967.9,1967.6,0.41]
[1617311881868,3.81162,1967.9,1967.5,7.62254]
[1617311882068,71.94025695,1968.1,1967.5,16.01254]
[1617311882271,71.94025695,1968.1,1967.5,11.55]
[1617311882469,0.09132494,1968.0,1967.5,11.55]
[1617311882668,0.4,1968.1,1967.7,7.62179]
[1617311883268,0.4,1968.1,1967.7,15.62179]
[1617311883669,11.43283,1968.3,1967.7,16.01179]
[1617311883869,0.38,1968.2,1967.7,16.01179]
[1617311884071,0.38,1968.2,1967.8,7.62134]
[1617311885094,11.71283,1968.3,1967.8,7.62134]
[1617311886193,11.43283,1968.3,1967.8,7.62134]
[1617311887422,11.43283,1968.3,1967.9,0.142987]
[1617311887618,7.5,1968.2,1967.9,0.142987]
[1617311888019,11.43283,1968.3,1967.9,0.142987]
[1617311892288,11.43283,1968.3,1967.9,2.822987]
[1617311892489,12.43520256,1968.3,1967.9,2.822987]
[1617311892697,12.43520256,1968.3,1967.9,0.142987]
[1617311893090,11.43283,1968.3,1967.9,0.142987]
[1617311894894,0.41,1968.0,1967.9,0.142987]
[1617311895493,4.90628204,1968.3,1967.9,0.142987]
[1617311895693,0.66,1968.1,1967.9,0.142987]
[1617311896291,7.62264,1968.0,1967.9,0.142987]
[1617311897294,0.38,1968.1,1967.9,0.142987]
[1617311897522,10.54352,1968.2,1967.9,0.142987]
[1617311898121,7.62202,1968.1,1967.9,0.142987]
[1617311898922,8.01202,1968.1,1967.9,0.142987]
[1617311899121,2.82,1968.0,1967.9,0.142987]
[1617311899321,8.01202,1968.1,1967.9,0.142987]
[1617311899521,0.4,1968.0,1967.9,0.142987]
[1617311899723,8.02249,1968.0,1967.9,0.142987]
[1617311901952,7.62249,1968.0,1967.9,0.142987]
[1617311903575,8.01249,1968.0,1967.9,0.142987]
[1617311905175,4.90628204,1968.3,1967.9,0.142987]
[1617311905403,5.4749571,1968.3,1967.9,0.142987]
[1617311905801,7.5,1968.2,1967.9,0.142987]
[1617311905999,5.4749571,1968.3,1967.9,0.142987]
[1617311906398,7.62206,1968.1,1967.9,0.142987]
[1617311907400,0.4,1968.2,1967.9,0.142987]
[1617311908022,0.39,1968.0,1967.9,0.142987]
[1617311908425,8.03175,1968.2,1967.9,0.142987]
[1617311908822,7.62175,1968.2,1967.9,0.142987]
[1617311909223,4.09104,1968.3,1967.9,0.142987]
[1617311909823,7.5,1968.2,1967.9,0.142987]
[1617311910023,4.09104,1968.3,1967.9,0.532987]
[1617311910223,5.11434401,1968.3,1967.9,3.392987]
[1617311910647,5.11434401,1968.3,1967.9,0.532987]
[1617311911448,5.11434401,1968.3,1967.9,0.142987]
[1617311911650,4.83434401,1968.3,1967.9,0.15491121]
[1617311911850,1.02330401,1968.3,1967.9,0.15491121]
[1617311912053,1.02330401,1968.3,1968.2,0.01194404]
[1617311913271,11.5875,1968.4,1968.2,0.01194404]
[1617311913872,11.5875,1968.4,1968.2,6.44134404]
[1617311914073,11.43118,1968.5,1968.2,6.44134404]
[1617311915901,3.8104,1968.5,1968.2,6.44134404]
[1617311916306,3.8104,1968.5,1968.2,6.84134404]
[1617311916704,7.90018,1968.6,1968.2,6.84134404]
[1617311918540,7.90018,1968.6,1968.3,0.39]
[1617311918740,7.90018,1968.6,1968.3,0.40194297]
[1617311918942,0.28,1968.6,1968.3,0.40194297]
[1617311919340,11.42994,1968.7,1968.3,0.51034308]
[1617311919545,11.42994,1968.7,1968.3,4.09858446]
[1617311919740,11.42994,1968.7,1968.3,3.24227638]
[1617311919941,11.42994,1968.7,1968.4,0.01193336]
[1617311922183,11.80994,1968.7,1968.4,0.01193336]
[1617311922387,3.80998,1968.7,1968.4,0.01193336]
[1617311922583,3.80998,1968.7,1968.4,0.42193336]
[1617311922786,0.28,1968.8,1968.5,0.01193294]
[1617311923585,7.61961,1968.8,1968.5,0.01193294]
[1617311924986,0.4,1968.8,1968.6,6.334]
[1617311925984,1.28,1968.9,1968.6,6.334]
[1617311926185,1.67,1968.9,1968.6,6.334]
[1617311926402,9.28936,1968.9,1968.6,6.334]
[1617311927602,1.0,1968.9,1968.6,6.334]
[1617311928803,0.183654,1968.8,1968.6,6.334]
[1617311929050,0.183654,1968.8,1968.6,6.724]
[1617311929457,0.183654,1968.8,1968.6,14.34192]
[1617311929653,0.183654,1968.8,1968.7,5.4]
[1617311932263,0.183654,1968.8,1968.7,10.26]
[1617311933167,1.0,1968.9,1968.7,10.26]
[1617311933365,1.0,1969.4,1968.8,0.1368178]
[1617311933567,1.0,1969.4,1969.1,0.4]
[1617311933965,0.41,1969.3,1968.8,5.1468178]
[1617311934401,0.28,1969.3,1968.8,5.1468178]
[1617311934603,0.28,1969.3,1968.8,8.2568178]
[1617311935200,0.28,1969.3,1969.0,7.61666]
[1617311935400,1.0,1969.4,1969.0,17.29036]
[1617311936203,1.0,1969.4,1969.0,9.6737]
[1617311938222,1.0,1969.4,1969.0,17.29032]
[1617311939423,1.0,1969.4,1969.0,20.69032]
[1617311942031,1.35,1969.4,1969.0,20.69032]
[1617311942252,1.35,1969.4,1969.0,21.10032]
[1617311942253,1.0,1969.4,1969.0,21.10032]
[1617311942654,0.95,1969.4,1969.0,21.10032]
[1617311943852,0.95,1969.4,1969.0,20.69032]
[1617311945275,0.95,1969.4,1969.3,0.4]
[1617311945476,0.95,1969.4,1969.1,0.4]
[1617311945876,0.95,1969.4,1969.1,3.56]
[1617311947076,0.95,1969.4,1969.1,3.16]
[1617311947275,0.95,1969.4,1969.1,10.77624]
[1617311957175,0.95,1969.4,1969.1,11.15624]
[1617311958221,0.95,1969.4,1969.2,7.61584]
[1617311958618,0.95,1969.4,1969.2,10.47584]
[1617311962231,0.9,1969.4,1969.2,10.47584]
[1617311963256,1.92519053,1969.4,1969.2,11.49211089]
[1617311963465,1.92519053,1969.4,1969.2,11.90211089]
[1617311963662,0.9,1969.4,1969.2,11.90211089]
[1617311965464,0.9,1969.4,1969.2,11.49211089]
[1617311965876,0.9,1969.4,1969.2,10.47584]
[1617311966277,0.9,1969.4,1969.2,7.61584]
[1617311967978,0.9,1969.4,1969.2,7.99584]
[1617311968423,0.9,1969.4,1969.2,7.61584]
[1617311975666,0.4,1969.3,1969.0,8.59]
[1617311975865,0.4,1969.3,1969.2,5.01]
[1617311976064,0.9,1969.4,1969.2,5.01]
[1617311976279,0.9,1969.4,1969.0,5.01]
[1617311976483,1.3,1969.4,1969.0,5.01]
[1617311976880,0.41,1969.2,1969.1,7.6164]
[1617311977279,1.3,1969.4,1969.1,7.6164]
[1617311978685,0.68,1969.2,1968.8,10.2923578]
[1617311978902,0.38,1969.0,1968.8,10.2923578]
[1617311979302,0.38,1969.0,1968.8,10.15554]
[1617311979705,0.41,1968.9,1968.8,10.15554]
[1617311979906,0.739,1968.9,1968.5,10.15652]
[1617311980303,0.41,1968.9,1968.5,10.15652]
[1617311980704,3.5684462,1969.3,1968.5,10.15652]
[1617311980905,0.4,1969.0,1968.6,7.61808]
[1617311981104,0.582,1969.1,1968.6,7.61808]
[1617311981304,0.972,1969.1,1968.6,7.70908]
[1617311981550,0.972,1969.1,1968.6,10.42908]
[1617311982150,0.972,1969.1,1968.6,18.42908]
[1617311982348,0.972,1969.1,1968.6,15.70908]
[1617311983152,0.38,1968.9,1968.6,7.70908]
[1617311984358,0.499,1968.9,1968.6,0.091]
[1617311985555,0.38,1968.9,1968.6,0.091]
[1617311988184,0.38,1968.9,1968.6,8.091]
[1617311988384,0.38,1968.9,1968.6,0.091]
[1617311988986,7.6185,1969.0,1968.6,0.091]
[1617311989187,8.0185,1969.0,1968.6,0.091]
[1617311990914,0.39,1968.8,1968.6,0.091]
[1617311991612,7.6185,1969.0,1968.6,0.091]
[1617311991813,8.0085,1969.0,1968.6,0.091]
[1617311993436,0.39,1968.8,1968.6,0.091]
[1617311994436,7.6185,1969.0,1968.6,0.091]
[1617311994653,8.2955,1969.0,1968.6,0.091]
[1617311997302,0.413,1968.9,1968.4,8.11937]
[1617311997505,8.41165,1968.9,1968.4,0.501]
[1617311998302,0.39,1968.8,1968.4,0.091]
[1617311998703,8.03165,1968.9,1968.4,3.191]